[Event "EYCC Open-U10 2019"]
[Site "Bratislava"]
[Date "2019.08.02"]
[Round "1.1"]
[White "Faivishevsky, Noam"]
[Black "Materia, Marco"]
[Result "0-1"]
[ECO "C77"]
[WhiteElo "1401"]
[BlackElo "2243"]
[Annotator "NA"]
[PlyCount "90"]
[EventDate "2019.08.02"]
[EventType "swiss"]
[EventCountry "SVK"]
[SourceTitle "playchess.com"]
[Source "ChessBase"]
[SourceQuality "1"]
[TimeControl "40/5400+30:1800+30"]

1. e4 e5 2. Nf3 Nc6 3. Bb5 a6 4. Ba4 Nf6 5. d3 d6 6. c3 g6 7. Nbd2 Bg7 8. O-O O-O 9. Re1 b5 10. Bc2 Bb7 11. d4 exd4 12. cxd4 d5 13. e5 Nd7 14. Nf1 f6 15. e6 Nb6 16. h4 Re8 17. g4 Bc8 18. h5 Rxe6 19. Rxe6 Bxe6 20. hxg6 hxg6 21. Ne3 Ne7 22. b3 Qd6 23. a4 c6 24. Bd3 Qd7 25. Nh4 Bf7 26. Ba3 Nbc8 27. Bc5 Bh6 28. Qf3 Kg7 29. axb5 cxb5 30. Ra5 Nd6 31. Bxd6 Qxd6 32. Bxb5 Qb6 33. b4 Qxd4 34. Ra4 Qb6 35. Bc4 Qc6 36. b5 axb5 37. Bxb5 Qc1+ 38. Kg2 Rxa4 39. Bxa4 d4 40. Qd1 Bxe3 41. fxe3 Bd5+ 42. Kh2 Qxe3 43. Bc2 Qf2+ 44. Kh3 g5 45. Nf5+ Nxf5 0-1

[Event "EYCC Open-U10 2019"]
[Site "Bratislava"]
[Date "2019.08.02"]
[Round "1.2"]
[White "Finek, Vaclav"]
[Black "Jalovec, Igor"]
[Result "1-0"]
[ECO "E10"]
[WhiteElo "2043"]
[BlackElo "1465"]
[Annotator "NA"]
[PlyCount "65"]
[EventDate "2019.08.02"]
[EventType "swiss"]
[EventCountry "SVK"]
[SourceTitle "playchess.com"]
[Source "ChessBase"]
[SourceQuality "1"]
[TimeControl "40/5400+30:1800+30"]

1. d4 Nf6 2. c4 e6 3. Nf3 d5 4. e3 Be7 5. b3 O-O 6. Be2 Nbd7 7. O-O Ne4 8. Bb2 Ndf6 9. Nbd2 Nxd2 10. Qxd2 c5 11. Rfd1 Qb6 12. dxc5 Bxc5 13. Bxf6 gxf6 14. cxd5 Rd8 15. Bc4 Kh8 16. Qb2 e5 17. Nd2 Bf5 18. Nf1 Rg8 19. Ng3 Bd7 20. Rac1 Rac8 21. Kh1 Qa5 22. Qe2 Bg4 23. f3 Bd7 24. d6 Be6 25. Bxe6 fxe6 26. Qc4 Bxd6 27. Qxe6 Rgd8 28. Rxc8 Rxc8 29. Qxc8+ Kg7 30. Qd7+ Kg6 31. Qf5+ Kg7 32. Nh5+ Kf8 33. Qxf6+ 1-0

[Event "EYCC Open-U10 2019"]
[Site "Bratislava"]
[Date "2019.08.02"]
[Round "1.3"]
[White "Arora, Abhiraaj"]
[Black "Vetokhin, Savva"]
[Result "0-1"]
[ECO "B56"]
[WhiteElo "1463"]
[BlackElo "1954"]
[Annotator "NA"]
[PlyCount "98"]
[EventDate "2019.08.02"]
[EventType "swiss"]
[EventCountry "SVK"]
[SourceTitle "playchess.com"]
[Source "ChessBase"]
[SourceQuality "1"]
[TimeControl "40/5400+30:1800+30"]

1. e4 {[%emt 0:00:00]} c5 {[%emt 0:00:00]} 2. Nf3 {[%emt 0:00:03]} Nc6 {[%emt 0:00:00]} 3. d4 {[%emt 0:00:10]} cxd4 {[%emt 0:00:05]} 4. Nxd4 {[%emt 0:00:07]} Nf6 {[%emt 0:00:05]} 5. Nc3 {[%emt 0:00:13]} d6 {[%emt 0:00:04]} 6. Be3 {[%emt 0:00:48]} Ng4 {[%emt 0:00:12]} 7. Nf5 {[%emt 0:02:32]} Nxe3 {[%emt 0:01:44]} 8. Nxe3 {[%emt 0:00:09]} g6 {[%emt 0:00:11]} 9. Bc4 {[%emt 0:02:12]} Bg7 {[%emt 0:01:08]} 10. Qd2 {[%emt 0:01:03]} O-O {[%emt 0:00:16]} 11. O-O-O {[%emt 0:02:22]} Bd7 {[%emt 0:10:46]} 12. h4 {[%emt 0:02:30]} Rc8 {[%emt 0:02:25]} 13. h5 {[%emt 0:02:50]} Na5 {[%emt 0:00:58]} 14. Bb3 {[%emt 0:01:37]} Nxb3+ {[%emt 0:00:05]} 15. cxb3 {[%emt 0:00:35]} Qa5 {[%emt 0:05:56]} 16. Ned5 {[%emt 0:01:52]} Rfe8 {[%emt 0:00:59]} 17. Kb1 {[%emt 0:03:19]} e6 {[%emt 0:23:30]} 18. b4 {[%emt 0:05:33]} Qd8 {[%emt 0:04:29]} 19. Nf4 {[%emt 0:01:53]} Qg5 {[%emt 0:01:49]} 20. Nce2 {[%emt 0:06:11]} Ba4 {[%emt 0:04:42]} 21. Rdg1 {[%emt 0:04:00]} e5 {[%emt 0:01:02]} 22. hxg6 {[%emt 0:05:23]} hxg6 {[%emt 0:00:43]} 23. Qd5 {[%emt 0:02:48]} Bc6 {[%emt 0:00:04]} 24. Nh3 {[%emt 0:01:18]} Qg4 {[%emt 0:00:08]} 25. Qd2 {[%emt 0:02:38]} Bxe4+ {[%emt 0:00:06]} 26. Ka1 {[%emt 0:00:23]} Rc2 {[%emt 0:00:08]} 27. Qxd6 {[%emt 0:02:10]} Qxe2 {[%emt 0:00:14]} 28. Re1 {[%emt 0:04:29]} Qd3 {[%emt 0:00:16]} 29. Qxd3 {[%emt 0:00:56]} Bxd3 {[%emt 0:00:05]} 30. Rd1 {[%emt 0:04:39]} e4 {[%emt 0:00:03]} 31. Rb1 {[%emt 0:00:05]} Re2 {[%emt 0:00:03]} 32. Rhc1 {[%emt 0:02:02]} Bxb1 {[%emt 0:00:06]} 33. Rxb1 {[%emt 0:00:09]} Rd8 {[%emt 0:00:02]} 34. a3 {[%emt 0:00:41]} Rdd2 {[%emt 0:00:05]} 35. Ng5 {[%emt 0:00:50]} Bxb2+ {[%emt 0:00:05]} 36. Ka2 {[%emt 0:00:40]} Bf6+ {[%emt 0:00:04]} 37. Kb3 {[%emt 0:00:30]} Bxg5 {[%emt 0:00:01]} 38. Ka4 {[%emt 0:00:25]} Rxf2 {[%emt 0:00:05]} 39. Re1 {[%emt 0:00:14]} e3 {[%emt 0:00:03]} 40. Rc1 {[%emt 0:00:00]} e2 {[%emt 0:00:00]} 41. Rc8+ {[%emt 0:01:09]} Bd8 {[%emt 0:00:12]} 42. Rc1 {[%emt 0:00:06]} Rd1 {[%emt 0:00:02]} 43. Rc2 {[%emt 0:00:08]} e1=Q {[%emt 0:00:05]} 44. Rc8 {[%emt 0:00:10]} b5+ {[%emt 0:00:05]} 45. Kxb5 {[%emt 0:00:12]} Qe8+ {[%emt 0:00:04]} 46. Ka6 {[%emt 0:00:28]} Rf6+ {[%emt 0:00:05]} 47. Kxa7 {[%emt 0:00:08]} Qd7+ {[%emt 0:00:07]} 48. Kb8 {[%emt 0:00:10]} Rb6+ {[%emt 0:00:05]} 49. Ka8 {[%emt 0:00:08]} Qb7# {[%emt 0:00:03]} 0-1

[Event "EYCC Open-U10 2019"]
[Site "Bratislava"]
[Date "2019.08.02"]
[Round "1.4"]
[White "Royal, Shreyas"]
[Black "Qasem, Muhamad Mody"]
[Result "1-0"]
[ECO "E08"]
[WhiteElo "1996"]
[BlackElo "1400"]
[Annotator "NA"]
[PlyCount "65"]
[EventDate "2019.08.02"]
[EventType "swiss"]
[EventCountry "SVK"]
[SourceTitle "playchess.com"]
[Source "ChessBase"]
[SourceQuality "1"]
[TimeControl "40/5400+30:1800+30"]

1. d4 {[%emt 0:00:00]} Nf6 {[%emt 0:00:07]} 2. c4 {[%emt 0:00:37]} e6 {[%emt 0:00:36]} 3. g3 {[%emt 0:01:16]} d5 {[%emt 0:01:01]} 4. Bg2 {[%emt 0:00:45]} Be7 {[%emt 0:01:01]} 5. Nf3 {[%emt 0:01:29]} O-O {[%emt 0:01:50]} 6. O-O {[%emt 0:00:52]} c6 {[%emt 0:01:20]} 7. Qc2 {[%emt 0:01:16]} Nbd7 {[%emt 0:01:52]} 8. b3 {[%emt 0:01:54]} b6 {[%emt 0:02:01]} 9. Bb2 {[%emt 0:02:16]} Bb7 {[%emt 0:01:22]} 10. Rd1 {[%emt 0:00:09]} Rc8 {[%emt 0:01:50]} 11. Nc3 {[%emt 0:00:24]} Re8 {[%emt 0:02:18]} 12. e4 {[%emt 0:01:03]} Nxe4 {[%emt 0:05:21]} 13. Nxe4 {[%emt 0:00:46]} dxe4 {[%emt 0:00:17]} 14. Qxe4 {[%emt 0:00:20]} Nf6 {[%emt 0:02:12]} 15. Qe2 {[%emt 0:01:26]} Qc7 {[%emt 0:03:25]} 16. Rac1 {[%emt 0:01:08]} Rcd8 {[%emt 0:05:44]} 17. a3 {[%emt 0:03:50]} c5 {[%emt 0:06:40]} 18. dxc5 {[%emt 0:00:14]} bxc5 {[%emt 0:00:56]} 19. Be5 {[%emt 0:05:30]} Qb6 {[%emt 0:02:27]} 20. Qb2 {[%emt 0:00:42]} Bc6 {[%emt 0:02:59]} 21. Ne1 {[%emt 0:05:30]} Bxg2 {[%emt 0:02:07]} 22. Nxg2 {[%emt 0:00:05]} Qb7 {[%emt 0:00:30]} 23. Ne3 {[%emt 0:06:06]} Qf3 {[%emt 0:03:45]} 24. Bc7 {[%emt 0:03:51]} Rc8 {[%emt 0:03:21]} 25. Ba5 {[%emt 0:01:26]} Ng4 {[%emt 0:06:34]} 26. Nxg4 {[%emt 0:00:55]} Qxg4 {[%emt 0:01:28]} 27. Rd7 {[%emt 0:00:11]} Bf6 {[%emt 0:02:56]} 28. Bc3 {[%emt 0:00:13]} Bxc3 {[%emt 0:01:45]} 29. Qxc3 {[%emt 0:00:07]} Rcd8 {[%emt 0:02:17]} 30. Qd3 {[%emt 0:02:09]} Qg5 {[%emt 0:00:55]} 31. Rd1 {[%emt 0:00:27]} Ra8 {[%emt 0:02:57]} 32. Qf3 {[%emt 0:00:33]} Qg6 {[%emt 0:03:31]} 33. Qxa8 {[%emt 0:00:23]} 1-0

[Event "EYCC Open-U10 2019"]
[Site "Bratislava"]
[Date "2019.08.02"]
[Round "1.5"]
[White "Haubold, Christian Lucas"]
[Black "Salinas Tomas, Daniel"]
[Result "1/2-1/2"]
[ECO "B42"]
[WhiteElo "1429"]
[BlackElo "2001"]
[Annotator "NA"]
[PlyCount "43"]
[EventDate "2019.08.02"]
[EventType "swiss"]
[EventCountry "SVK"]
[SourceTitle "playchess.com"]
[Source "ChessBase"]
[SourceQuality "1"]
[TimeControl "40/5400+30:1800+30"]

1. e4 {[%emt 0:00:00]} c5 {[%emt 0:00:05]} 2. Nf3 {[%emt 0:00:00]} e6 {[%emt 0:00:07]} 3. d4 {[%emt 0:00:00]} cxd4 {[%emt 0:00:04]} 4. Nxd4 {[%emt 0:00:02]} a6 {[%emt 0:00:05]} 5. Bd3 {[%emt 0:00:30]} Nf6 {[%emt 0:00:24]} 6. Qe2 {[%emt 0:00:22]} d6 {[%emt 0:00:27]} 7. O-O {[%emt 0:00:16]} Be7 {[%emt 0:00:23]} 8. c4 {[%emt 0:00:32]} O-O {[%emt 0:00:21]} 9. Nc3 {[%emt 0:00:46]} Nbd7 {[%emt 0:00:27]} 10. Be3 {[%emt 0:04:11]} Qc7 {[%emt 0:00:25]} 11. b3 {[%emt 0:01:11]} Ne5 {[%emt 0:03:50]} 12. f4 {[%emt 0:06:01]} Nxd3 {[%emt 0:00:29]} 13. Qxd3 {[%emt 0:00:27]} Ng4 {[%emt 0:09:02]} 14. Bd2 {[%emt 0:07:27]} Nf6 {[%emt 0:06:47]} 15. h3 {[%emt 0:02:15]} Nd7 {[%emt 0:05:33]} 16. f5 {[%emt 0:08:50]} Ne5 {[%emt 0:02:13]} 17. Qg3 {[%emt 0:01:17]} Bf6 {[%emt 0:00:36]} 18. Nf3 {[%emt 0:09:26]} Kh8 {[%emt 0:05:27]} 19. Bg5 {[%emt 0:05:42]} Nxf3+ {[%emt 0:03:03]} 20. Rxf3 {[%emt 0:01:13]} Bd4+ {[%emt 0:16:03]} 21. Kh1 {[%emt 0:01:11]} f6 {[%emt 0:02:07]} 22. Bd2 {[%emt 0:02:22]} 1/2-1/2

[Event "EYCC Open-U10 2019"]
[Site "Bratislava"]
[Date "2019.08.02"]
[Round "1.6"]
[White "Toktomushev, Teimur"]
[Black "Klaska, Philipp Leon"]
[Result "0-1"]
[ECO "D05"]
[WhiteElo "1977"]
[BlackElo "1441"]
[Annotator "NA"]
[PlyCount "106"]
[EventDate "2019.08.02"]
[EventType "swiss"]
[EventCountry "SVK"]
[SourceTitle "playchess.com"]
[Source "ChessBase"]
[SourceQuality "1"]
[TimeControl "40/5400+30:1800+30"]

1. d4 {[%emt 0:00:00]} d5 {[%emt 0:00:00]} 2. Nf3 {[%emt 0:00:06]} e6 {[%emt 0:00:00]} 3. e3 {[%emt 0:00:09]} Nf6 {[%emt 0:00:00]} 4. Nbd2 {[%emt 0:00:17]} Be7 {[%emt 0:00:26]} 5. b3 {[%emt 0:00:04]} O-O {[%emt 0:00:44]} 6. Bb2 {[%emt 0:00:05]} Nbd7 {[%emt 0:00:23]} 7. Bd3 {[%emt 0:00:07]} c5 {[%emt 0:00:54]} 8. O-O {[%emt 0:00:14]} b6 {[%emt 0:00:27]} 9. Ne5 {[%emt 0:00:07]} Bb7 {[%emt 0:01:18]} 10. f4 {[%emt 0:00:09]} Rc8 {[%emt 0:00:59]} 11. Qf3 {[%emt 0:02:22]} Qc7 {[%emt 0:02:42]} 12. Qh3 {[%emt 0:00:38]} Ne4 {[%emt 0:05:57]} 13. Nxe4 {[%emt 0:13:20]} dxe4 {[%emt 0:00:22]} 14. Bc4 {[%emt 0:00:49]} Nf6 {[%emt 0:02:40]} 15. Rf2 {[%emt 0:06:33]} Bd5 {[%emt 0:06:02]} 16. g4 {[%emt 0:06:17]} Bxc4 {[%emt 0:05:02]} 17. Nxc4 {[%emt 0:00:26]} b5 {[%emt 0:02:50]} 18. Ne5 {[%emt 0:00:37]} c4 {[%emt 0:02:11]} 19. c3 {[%emt 0:06:08]} Nd5 {[%emt 0:02:56]} 20. Rc2 {[%emt 0:05:18]} f6 {[%emt 0:01:38]} 21. g5 {[%emt 0:01:34]} f5 {[%emt 0:16:46]} 22. Kh1 {[%emt 0:04:43]} g6 {[%emt 0:04:33]} 23. Re1 {[%emt 0:06:13]} Bd6 {[%emt 0:02:38]} 24. Qg3 {[%emt 0:09:02]} Bxe5 {[%emt 0:01:31]} 25. dxe5 {[%emt 0:03:25]} cxb3 {[%emt 0:02:30]} 26. axb3 {[%emt 0:00:30]} Nb4 {[%emt 0:02:38]} 27. Rd2 {[%emt 0:00:29]} Nd3 {[%emt 0:00:23]} 28. Red1 {[%emt 0:03:10]} Rfd8 {[%emt 0:06:19]} 29. Ba1 {[%emt 0:02:31]} a5 {[%emt 0:06:10]} 30. h4 {[%emt 0:01:31]} a4 {[%emt 0:03:23]} 31. bxa4 {[%emt 0:00:20]} bxa4 {[%emt 0:00:08]} 32. h5 {[%emt 0:00:08]} Rb8 {[%emt 0:03:11]} 33. Qh4 {[%emt 0:01:29]} gxh5 {[%emt 0:01:56]} 34. Qxh5 {[%emt 0:02:16]} Qf7 {[%emt 0:02:10]} 35. Qh4 {[%emt 0:05:19]} a3 {[%emt 0:01:26]} 36. Kg1 {[%emt 0:00:55]} Qa7 {[%emt 0:01:29]} 37. Qg3 {[%emt 0:03:33]} Rd7 {[%emt 0:05:53]} 38. c4 {[%emt 0:02:32]} a2 {[%emt 0:02:08]} 39. Kh2 {[%emt 0:04:52]} Rb1 {[%emt 0:01:31]} 40. Qh3 {[%emt 0:00:00]} Qa4 {[%emt 0:00:00]} 41. Qh6 {[%emt 0:02:24]} Qxc4 {[%emt 0:08:00]} 42. Qf6 {[%emt 0:01:06]} Rxd1 {[%emt 0:02:58]} 43. Rxd1 {[%emt 0:00:04]} Qc2+ {[%emt 0:00:55]} 44. Kh3 {[%emt 0:01:03]} Qxd1 {[%emt 0:02:09]} 45. Qxe6+ {[%emt 0:00:38]} Rf7 {[%emt 0:01:47]} 46. Qe8+ {[%emt 0:00:05]} Rf8 {[%emt 0:00:24]} 47. Qe6+ {[%emt 0:00:18]} Rf7 {[%emt 0:00:05]} 48. Qe8+ {[%emt 0:00:03]} Rf8 {[%emt 0:00:09]} 49. Qe6+ {[%emt 0:00:04]} Kh8 {[%emt 0:01:48]} 50. Qe7 {[%emt 0:00:13]} Qh1+ {[%emt 0:00:12]} 51. Kg3 {[%emt 0:00:05]} Qg1+ {[%emt 0:00:05]} 52. Kh3 {[%emt 0:00:06]} Nf2+ {[%emt 0:00:06]} 53. Kh4 {[%emt 0:00:02]} Qg4# {[%emt 0:00:08]} 0-1

[Event "EYCC Open-U10 2019"]
[Site "Bratislava"]
[Date "2019.08.02"]
[Round "1.7"]
[White "Tykheev, Aldar"]
[Black "Samunenkov, Ihor"]
[Result "0-1"]
[ECO "B03"]
[WhiteElo "1434"]
[BlackElo "1985"]
[Annotator "NA"]
[PlyCount "90"]
[EventDate "2019.08.02"]
[EventType "swiss"]
[EventCountry "SVK"]
[SourceTitle "playchess.com"]
[Source "ChessBase"]
[SourceQuality "1"]
[TimeControl "40/5400+30:1800+30"]

1. e4 {[%emt 0:00:00]} Nf6 {[%emt 0:00:00]} 2. e5 {[%emt 0:00:00]} Nd5 {[%emt 0:00:00]} 3. c4 {[%emt 0:00:00]} Nb6 {[%emt 0:00:14]} 4. d4 {[%emt 0:00:16]} d6 {[%emt 0:00:17]} 5. exd6 {[%emt 0:00:08]} cxd6 {[%emt 0:00:06]} 6. Nc3 {[%emt 0:00:41]} g6 {[%emt 0:00:23]} 7. Nf3 {[%emt 0:01:32]} Bg7 {[%emt 0:00:23]} 8. Be3 {[%emt 0:01:06]} O-O {[%emt 0:02:10]} 9. Be2 {[%emt 0:01:14]} Nc6 {[%emt 0:05:15]} 10. O-O {[%emt 0:02:21]} d5 {[%emt 0:01:16]} 11. c5 {[%emt 0:07:39]} Nc4 {[%emt 0:00:08]} 12. Bxc4 {[%emt 0:05:58]} dxc4 {[%emt 0:00:13]} 13. d5 {[%emt 0:00:36]} Nb4 {[%emt 0:01:05]} 14. Qa4 {[%emt 0:13:14]} Nxd5 {[%emt 0:02:12]} 15. Nxd5 {[%emt 0:13:40]} Qxd5 {[%emt 0:00:22]} 16. Rfd1 {[%emt 0:01:13]} Qh5 {[%emt 0:09:19]} 17. Qxc4 {[%emt 0:03:38]} Bg4 {[%emt 0:03:02]} 18. Rd5 {[%emt 0:12:34]} e5 {[%emt 0:02:39]} 19. Qe2 {[%emt 0:12:05]} Be6 {[%emt 0:01:51]} 20. Rd2 {[%emt 0:01:38]} e4 {[%emt 0:03:06]} 21. Nd4 {[%emt 0:01:35]} Qxe2 {[%emt 0:03:42]} 22. Rxe2 {[%emt 0:02:25]} Bc4 {[%emt 0:02:04]} 23. Rd2 {[%emt 0:01:46]} Rfd8 {[%emt 0:07:40]} 24. Rc1 {[%emt 0:07:06]} Bxa2 {[%emt 0:02:08]} 25. b4 {[%emt 0:00:04]} a6 {[%emt 0:08:17]} 26. c6 {[%emt 0:02:41]} bxc6 {[%emt 0:06:46]} 27. Nxc6 {[%emt 0:00:16]} Rxd2 {[%emt 0:00:38]} 28. Bxd2 {[%emt 0:00:18]} Kf8 {[%emt 0:01:43]} 29. h3 {[%emt 0:04:10]} Rc8 {[%emt 0:03:10]} 30. Be3 {[%emt 0:03:24]} Ke8 {[%emt 0:01:20]} 31. Rc5 {[%emt 0:01:16]} Be6 {[%emt 0:01:07]} 32. Nd4 {[%emt 0:00:55]} Rxc5 {[%emt 0:02:07]} 33. Nxe6 {[%emt 0:00:18]} Rc6 {[%emt 0:04:46]} 34. Nxg7+ {[%emt 0:00:06]} Kf8 {[%emt 0:00:19]} 35. Bh6 {[%emt 0:00:21]} Ke7 {[%emt 0:00:28]} 36. g4 {[%emt 0:00:51]} f6 {[%emt 0:00:50]} 37. h4 {[%emt 0:00:48]} Kf7 {[%emt 0:00:11]} 38. g5 {[%emt 0:00:35]} f5 {[%emt 0:00:09]} 39. h5 {[%emt 0:00:29]} Rc4 {[%emt 0:00:15]} 40. hxg6+ {[%emt 0:00:00]} hxg6 {[%emt 0:00:00]} 41. Kf1 {[%emt 0:00:23]} Rxb4 {[%emt 0:00:25]} 42. Ke2 {[%emt 0:00:42]} Rb7 {[%emt 0:00:10]} 43. f3 {[%emt 0:00:35]} exf3+ {[%emt 0:00:14]} 44. Kxf3 {[%emt 0:00:05]} a5 {[%emt 0:00:08]} 45. Kf4 {[%emt 0:00:04]} Rb5 {[%emt 0:00:21]} 0-1

[Event "EYCC Open-U10 2019"]
[Site "Bratislava"]
[Date "2019.08.02"]
[Round "1.8"]
[White "Usov, Aleksandr E."]
[Black "Blumenthal, Michael"]
[Result "1-0"]
[ECO "B22"]
[WhiteElo "1809"]
[BlackElo "1311"]
[Annotator "NA"]
[PlyCount "71"]
[EventDate "2019.08.02"]
[EventType "swiss"]
[EventCountry "SVK"]
[SourceTitle "playchess.com"]
[Source "ChessBase"]
[SourceQuality "1"]
[TimeControl "40/5400+30:1800+30"]

1. e4 {[%emt 0:00:00]} c5 {[%emt 0:00:00]} 2. c3 {[%emt 0:00:00]} g6 {[%emt 0:00:00]} 3. d4 {[%emt 0:00:00]} cxd4 {[%emt 0:00:00]} 4. cxd4 {[%emt 0:00:00]} d5 {[%emt 0:00:02]} 5. e5 {[%emt 0:00:00]} Nc6 {[%emt 0:00:24]} 6. Nf3 {[%emt 0:00:07]} Bg7 {[%emt 0:00:10]} 7. Bb5 {[%emt 0:00:02]} Bg4 {[%emt 0:01:26]} 8. Bf4 {[%emt 0:00:42]} Nh6 {[%emt 0:01:23]} 9. Nc3 {[%emt 0:07:10]} Bxf3 {[%emt 0:02:59]} 10. Qxf3 {[%emt 0:00:04]} Nf5 {[%emt 0:01:04]} 11. Rd1 {[%emt 0:03:37]} a6 {[%emt 0:07:52]} 12. Bxc6+ {[%emt 0:00:42]} bxc6 {[%emt 0:00:13]} 13. g4 {[%emt 0:00:19]} Nh6 {[%emt 0:02:12]} 14. O-O {[%emt 0:03:07]} e6 {[%emt 0:06:17]} 15. Bxh6 {[%emt 0:00:56]} Bxh6 {[%emt 0:00:50]} 16. Qg3 {[%emt 0:00:25]} Kd7 {[%emt 0:11:45]} 17. Na4 {[%emt 0:00:21]} Bf8 {[%emt 0:01:35]} 18. Rc1 {[%emt 0:00:55]} h5 {[%emt 0:12:30]} 19. Qf3 {[%emt 0:00:22]} Rh7 {[%emt 0:01:29]} 20. gxh5 {[%emt 0:04:07]} gxh5 {[%emt 0:02:30]} 21. Qb3 {[%emt 0:01:16]} Rb8 {[%emt 0:02:43]} 22. Qd3 {[%emt 0:00:04]} Qg5+ {[%emt 0:06:56]} 23. Kh1 {[%emt 0:02:25]} Qf5 {[%emt 0:06:33]} 24. Qxf5 {[%emt 0:00:23]} exf5 {[%emt 0:00:27]} 25. a3 {[%emt 0:02:46]} Rh6 {[%emt 0:06:24]} 26. b4 {[%emt 0:00:18]} a5 {[%emt 0:03:43]} 27. bxa5 {[%emt 0:03:20]} Bxa3 {[%emt 0:01:59]} 28. Rb1 {[%emt 0:00:19]} Rhh8 {[%emt 0:02:20]} 29. Nb6+ {[%emt 0:02:54]} Kc7 {[%emt 0:01:07]} 30. Rb3 {[%emt 0:00:47]} Be7 {[%emt 0:00:46]} 31. Rc1 {[%emt 0:01:40]} Rhd8 {[%emt 0:01:50]} 32. Rbc3 {[%emt 0:00:17]} c5 {[%emt 0:01:12]} 33. dxc5 {[%emt 0:00:29]} d4 {[%emt 0:00:32]} 34. Rc4 {[%emt 0:01:35]} d3 {[%emt 0:01:15]} 35. a6 {[%emt 0:01:48]} Bxc5 {[%emt 0:02:06]} 36. Na4 {[%emt 0:00:12]} 1-0

[Event "EYCC Open-U10 2019"]
[Site "Bratislava"]
[Date "2019.08.02"]
[Round "1.9"]
[White "Farias, David Nuno M E"]
[Black "Giang, Tran Nam"]
[Result "0-1"]
[ECO "B42"]
[WhiteElo "1372"]
[BlackElo "1931"]
[Annotator "NA"]
[PlyCount "88"]
[EventDate "2019.08.02"]
[EventType "swiss"]
[EventCountry "SVK"]
[SourceTitle "playchess.com"]
[Source "ChessBase"]
[SourceQuality "1"]
[TimeControl "40/5400+30:1800+30"]

1. e4 c5 2. Nf3 e6 3. d4 cxd4 4. Nxd4 a6 5. Bd3 Qb6 6. Nb3 Qc7 7. O-O Nf6 8. N1d2 Nc6 9. c3 {[%emt 0:17:12]} Be7 {[%emt 0:11:34]} 10. Nf3 O-O 11. Nbd4 d6 12. Nxc6 {[%emt 0:37:39]} bxc6 {[%emt 0:08:54]} 13. Qc2 {[%emt 0:04:13]} e5 {[%emt 0:03:36]} 14. c4 {[%emt 0:01:38]} Bg4 {[%emt 0:03:43]} 15. Nd2 {[%emt 0:02:38]} Nd7 {[%emt 0:05:19]} 16. f3 {[%emt 0:05:37]} Bh5 {[%emt 0:01:06]} 17. b3 {[%emt 0:01:31]} Nc5 {[%emt 0:02:11]} 18. Be2 {[%emt 0:00:42]} Ne6 {[%emt 0:01:54]} 19. Re1 {[%emt 0:01:00]} Qb6+ {[%emt 0:05:57]} 20. Kh1 {[%emt 0:01:39]} Qf2 {[%emt 0:00:10]} 21. Qd1 {[%emt 0:01:30]} Nf4 {[%emt 0:02:13]} 22. Bf1 {[%emt 0:02:17]} d5 {[%emt 0:02:20]} 23. g3 {[%emt 0:05:19]} Bc5 {[%emt 0:00:41]} 24. Bh3 {[%emt 0:00:59]} Nxh3 {[%emt 0:00:30]} 25. Rf1 {[%emt 0:02:24]} Qd4 {[%emt 0:00:46]} 26. Kg2 {[%emt 0:00:21]} Qxa1 {[%emt 0:00:58]} 27. Kxh3 {[%emt 0:00:09]} Qd4 {[%emt 0:01:56]} 28. Qc2 {[%emt 0:03:22]} dxe4 {[%emt 0:01:11]} 29. Nxe4 {[%emt 0:02:09]} Bg6 {[%emt 0:00:25]} 30. Rd1 {[%emt 0:00:53]} Bxe4 {[%emt 0:00:30]} 31. fxe4 {[%emt 0:00:15]} Qf2 {[%emt 0:00:08]} 32. Qc3 {[%emt 0:01:37]} Bd4 {[%emt 0:01:30]} 33. Qd3 {[%emt 0:01:18]} f5 {[%emt 0:00:36]} 34. Qb1 {[%emt 0:00:53]} fxe4 {[%emt 0:00:37]} 35. Ba3 {[%emt 0:02:09]} Rf5 {[%emt 0:00:17]} 36. Qxe4 {[%emt 0:01:01]} Rh5+ {[%emt 0:00:07]} 37. Kg4 {[%emt 0:00:42]} Qxh2 {[%emt 0:01:20]} 38. Rxd4 {[%emt 0:00:57]} Qh3+ {[%emt 0:00:20]} 39. Kf3 {[%emt 0:00:00]} exd4 {[%emt 0:00:00]} 40. Qxd4 {[%emt 0:00:00]} Rf5+ {[%emt 0:00:00]} 41. Ke2 {[%emt 0:01:41]} Qg2+ {[%emt 0:01:28]} 42. Kd3 {[%emt 0:01:05]} Rf3+ {[%emt 0:00:11]} 43. Ke4 {[%emt 0:00:05]} Qe2+ {[%emt 0:00:12]} 44. Qe3 {[%emt 0:00:13]} Qxe3# {[%emt 0:00:02]} 0-1

[Event "EYCC Open-U10 2019"]
[Site "Bratislava"]
[Date "2019.08.02"]
[Round "1.10"]
[White "Azadaliyev, Jahandar"]
[Black "Stary, Vojtech"]
[Result "1-0"]
[ECO "D35"]
[WhiteElo "1905"]
[BlackElo "1334"]
[Annotator "NA"]
[PlyCount "55"]
[EventDate "2019.08.02"]
[EventType "swiss"]
[EventCountry "SVK"]
[SourceTitle "playchess.com"]
[Source "ChessBase"]
[SourceQuality "1"]
[TimeControl "40/5400+30:1800+30"]

1. d4 {[%emt 0:00:00]} d5 {[%emt 0:00:00]} 2. c4 {[%emt 0:00:00]} e6 {[%emt 0:00:00]} 3. Nc3 {[%emt 0:00:02]} Nf6 {[%emt 0:00:00]} 4. cxd5 {[%emt 0:00:09]} exd5 {[%emt 0:00:00]} 5. Bg5 {[%emt 0:00:06]} c6 {[%emt 0:00:03]} 6. e3 {[%emt 0:00:11]} Be7 {[%emt 0:00:18]} 7. Bd3 {[%emt 0:00:07]} O-O {[%emt 0:00:54]} 8. Qc2 {[%emt 0:00:38]} h6 {[%emt 0:00:27]} 9. Bh4 {[%emt 0:00:22]} Be6 {[%emt 0:05:01]} 10. Nge2 {[%emt 0:00:56]} Nbd7 {[%emt 0:02:54]} 11. O-O {[%emt 0:01:58]} Nb6 {[%emt 0:03:11]} 12. f3 {[%emt 0:02:08]} Qc7 {[%emt 0:03:12]} 13. Nf4 {[%emt 0:01:03]} Bd7 {[%emt 0:00:44]} 14. Bxf6 {[%emt 0:00:33]} Bxf6 {[%emt 0:00:33]} 15. Ncxd5 {[%emt 0:00:16]} Nxd5 {[%emt 0:01:34]} 16. Nxd5 {[%emt 0:00:08]} Qd8 {[%emt 0:01:50]} 17. Nxf6+ {[%emt 0:00:06]} Qxf6 {[%emt 0:00:25]} 18. Rad1 {[%emt 0:00:53]} Qe6 {[%emt 0:01:25]} 19. e4 {[%emt 0:02:45]} Qxa2 {[%emt 0:04:10]} 20. f4 {[%emt 0:00:25]} Qe6 {[%emt 0:00:49]} 21. f5 {[%emt 0:00:58]} Qe8 {[%emt 0:03:06]} 22. e5 {[%emt 0:00:41]} Qd8 {[%emt 0:13:15]} 23. Rf3 {[%emt 0:02:54]} Qb6 {[%emt 0:02:34]} 24. Be4 {[%emt 0:01:05]} Kh8 {[%emt 0:05:47]} 25. f6 {[%emt 0:01:42]} g6 {[%emt 0:03:39]} 26. Bxg6 {[%emt 0:00:41]} Bg4 {[%emt 0:03:24]} 27. Qc1 {[%emt 0:00:20]} Bxf3 {[%emt 0:05:45]} 28. Qxh6+ {[%emt 0:00:33]} 1-0

[Event "EYCC Open-U10 2019"]
[Site "Bratislava"]
[Date "2019.08.03"]
[Round "2.1"]
[White "Materia, Marco"]
[Black "Sommer, Justus"]
[Result "1-0"]
[ECO "D35"]
[WhiteElo "2243"]
[BlackElo "1671"]
[Annotator "NA"]
[PlyCount "93"]
[EventDate "2019.08.02"]
[EventType "swiss"]
[EventCountry "SVK"]
[SourceTitle "playchess.com"]
[Source "ChessBase"]
[SourceQuality "1"]
[TimeControl "40/5400+30:1800+30"]

1. d4 d5 2. c4 e6 3. Nc3 Nf6 4. cxd5 exd5 5. Bg5 Be7 6. e3 c6 7. Bd3 Nbd7 8. Qc2 h6 9. Bh4 Nh5 10. Bxe7 Qxe7 11. Nge2 Nb6 12. O-O O-O 13. Rae1 Re8 14. Nc1 Nf6 15. f3 Qd6 16. Nb3 Be6 17. Nc5 Re7 18. Qf2 Rd8 19. Kh1 Bc8 20. Nb3 Be6 21. Na1 Nbd7 22. Bb1 Nf8 23. Nc2 Rde8 24. e4 dxe4 25. fxe4 Ng4 26. Qg1 Bc4 27. Rf3 Qd7 28. h3 Nf6 29. e5 Nd5 30. Ne4 b6 31. b3 Ba6 32. Ne3 Ne6 33. Nf5 c5 34. Nxe7+ Qxe7 35. dxc5 bxc5 36. Nd6 Rf8 37. Rg3 Nd4 38. Qf2 Nc7 39. Qf4 Kh8 40. Nf5 Nxf5 41. Bxf5 Ne6 42. Qg4 Rg8 43. Bxe6 fxe6 44. Rd1 Bb7 45. Rf1 Ba6 46. Rf6 Bc8 47. Rxh6+ 1-0